fUSD/lending_fUSD_20240728
["ID","MTS","AMOUNT","RATE_DAILY","PERIOD"]
[333495739,1722208232514,-300.0,9.937e-05,2]
[333495740,1722208232523,-1239.58465842,9.938e-05,2]
[333495741,1722208232533,-1632.6662692,9.938e-05,2]
[333495742,1722208232543,-4583.0286687,9.938e-05,2]
[333495760,1722208238321,-1150.70425807,9.888e-05,2]
[333495761,1722208238332,-1659.72296162,9.888e-05,2]
[333495762,1722208238344,-3173.08718234,9.888e-05,2]
[333495763,1722208238353,-3119.52806503,9.938e-05,2]
[333495764,1722208238362,-5313.07290543,9.938e-05,2]
[333495765,1722208238373,-427.20419193,9.938e-05,2]
[333495766,1722208238384,-500.0,9.938e-05,2]
[333495767,1722208238491,-6881.79290264,9.938e-05,2]
[333495768,1722208238501,-1000.73,9.977e-05,2]
[333495770,1722208238510,-1000.0,9.978e-05,2]
[333495772,1722208238519,-1842.83626,0.0001,2]
[333495773,1722208238529,-1250.0,0.0001,2]
[333495774,1722208238539,-3278.0,0.0001,2]
[333495775,1722208238548,-500.0,0.0001,2]
[333495776,1722208238558,-258.0,0.0001034,2]
[333495778,1722208238567,-441.15,0.0001047,2]
[333495780,1722208238576,-484.96,0.00010475,2]
[333495782,1722208238585,-1769.14600038,0.00010475,2]
[333495784,1722208238598,-870.96399962,0.00010475,2]
[333495786,1722208238608,-258.0,0.0001058,2]
[333495788,1722208238617,-31763.89950228,0.00010673,2]
[333495791,1722208238628,-542.99403541,0.00010673,2]
[333495797,1722208240401,-1577.1481247,0.00010673,2]
[333495798,1722208240413,-640.7160609,0.00010673,2]
[333495799,1722208240425,-6097.24227671,0.00010673,2]
[333495800,1722208240434,-20581.26534769,0.000108,2]
[333495801,1722208240446,-1729.84999999,0.000108,2]
[333495802,1722208240496,-6407.36436736,0.000108,2]
[333495803,1722208240507,-644.08472678,0.000108,2]
[333495804,1722208240549,-1634.38840113,0.000108,2]
[333495805,1722208240560,-376.955934,0.000108,2]
[333495806,1722208240617,-1124.02077438,0.000108,2]
[333495807,1722208240629,-28648.69008898,0.000108,2]
[333495808,1722208240639,-3000.0,0.000108,2]
[333495809,1722208240649,-258.0,0.0001083,2]
[333495810,1722208240659,-229.49774343,0.0001086,2]
[333495811,1722208240669,-229.49774343,0.00010863,2]
[333495812,1722208240679,-229.49774343,0.00010878,2]
[333495813,1722208240690,-6342.12,0.00010894,2]
[333495814,1722208240699,-1074.0,0.00010894,2]
[333495815,1722208240708,-5018.9755,0.00010897,2]
[333495816,1722208240717,-990.8623,0.00010898,2]
[333495817,1722208240726,-414.5634,0.00010898,2]
[333495818,1722208240735,-3000.0,0.000109,2]
[333495819,1722208240744,-207.92410251,0.000109,2]
[333495820,1722208240753,-324.61783536,0.000109,2]
[333495821,1722208240763,-1869.2975,0.000109,2]
[333495822,1722208240772,-1250.0,0.000109,2]
[333495823,1722208240781,-1250.0,0.000109,2]
[333495824,1722208240791,-633.46582986,0.000109,2]
[333495825,1722208240801,-15784.92823097,0.000109,2]
[333495826,1722208240810,-160.45561431,0.000109,2]
[333495827,1722208240820,-1768.91327454,0.000109,2]
[333495828,1722208240829,-160.45561431,0.000109,2]
[333495829,1722208240839,-220.15,0.00010904,2]
[333495830,1722208240848,-420.0,0.00010931,2]
[333495831,1722208240857,-634.78,0.00010958,2]
[333495832,1722208240866,-500.0,0.00010958,2]
[333495833,1722208240876,-346.11572256,0.00010958,2]
[333495834,1722208240886,-500.0,0.00010958,2]
[333495835,1722208240897,-504.29005169,0.00010958,2]
[333495836,1722208240906,-500.0,0.00010958,2]
[333495837,1722208240915,-500.0,0.00010958,2]
[333495838,1722208240926,-500.0,0.00010958,2]
[333495839,1722208240935,-500.0,0.00010958,2]
[333495840,1722208240945,-504.8854785,0.00010958,2]
[333495841,1722208240954,-500.0,0.00010958,2]
[333495842,1722208240964,-500.0,0.00010958,2]
[333495843,1722208240973,-500.0,0.00010958,2]
[333495844,1722208240982,-500.0,0.00010958,2]
[333495845,1722208240991,-500.0,0.00010958,2]
[333495846,1722208241000,-301.28140001,0.00010958,2]
[333495847,1722208241010,-500.0,0.00010958,2]
[333495848,1722208241020,-500.0,0.00010958,2]
[333495849,1722208241029,-500.0,0.0001097,2]
[333495850,1722208241039,-500.0,0.00010997,2]
[333495851,1722208241048,-500.0,0.00010997,2]
[333495852,1722208241058,-500.0,0.00010997,2]
[333495853,1722208241067,-11016.75956688,0.00010997,2]
[333495854,1722208241077,-2706.0531371,0.00010998,2]
[333495855,1722208241087,-245.5437829,0.00010998,2]
[333495856,1722208241097,-54329.2310396,0.00010998,2]
[333495857,1722208241107,-3396.9356495,0.00010998,2]
[333495858,1722208241116,-8145.7577369,0.00010998,2]
[333495859,1722208241126,-210.58612443,0.00010999,2]
[333495860,1722208241136,-5946.97813014,0.00010999,2]
[333495861,1722208241146,-1123.42877866,0.00010999,3]
[333495862,1722208241156,-1123.42877866,0.00010999,3]
[333495863,1722208241166,-342.79095665,0.00010999,2]
[333495864,1722208241176,-500.0,0.00010999,2]
[333495865,1722208241186,-410.35797203,0.00010999,2]
[333495866,1722208241195,-500.0,0.00010999,2]
[333495867,1722208241205,-500.0,0.00010999,2]
[333495868,1722208241215,-512.2636514,0.00010999,2]
[333495869,1722208241225,-506.02153401,0.00010999,2]
[333495870,1722208241236,-510.92498197,0.00010999,2]
[333495871,1722208241248,-530.54402873,0.00010999,2]
[333495872,1722208241258,-222.48426884,0.00010999,2]
[333495873,1722208241267,-447.87222446,0.00010999,2]
[333495874,1722208241277,-500.0,0.00010999,2]
[333495875,1722208241287,-500.0,0.00010999,2]
[333495876,1722208241297,-500.0,0.00010999,2]
[333495877,1722208241306,-500.0,0.00010999,2]
[333495878,1722208241315,-500.0,0.00010999,2]
[333495879,1722208241327,-500.0,0.00010999,2]
[333495880,1722208241336,-500.0,0.00010999,2]
[333495881,1722208241347,-500.0,0.00010999,2]
[333495882,1722208241357,-500.0,0.00010999,2]
[333495883,1722208241366,-500.0,0.00010999,2]
[333495884,1722208241375,-500.0,0.00010999,2]
[333495885,1722208241385,-412.20485601,0.00010999,2]
[333495886,1722208241395,-500.0,0.00010999,2]
[333495887,1722208241404,-444.01306764,0.00010999,2]
[333495888,1722208241414,-500.0,0.00010999,2]
[333495889,1722208241424,-500.0,0.00010999,2]
[333495890,1722208241434,-320.73,0.00010999,2]
[333495891,1722208241444,-150.0,0.00010999,2]
[333495892,1722208241454,-266095.87414215,0.00011,2]
[333495893,1722208241463,-2000.0,0.00011,2]
[333495894,1722208241474,-634.13659689,0.00011,2]
[333495895,1722208241483,-851142.79153804,0.00011,2]
[333495896,1722208241496,-6102.1638032,0.00011,2]
[333495910,1722208243290,-286.93626806,0.00011,2]
[333495911,1722208243302,-427.18428536,0.00011,2]
[333495912,1722208243314,-537.88,0.00011,2]
[333495913,1722208243326,-768.44720034,0.00011,2]
[333495914,1722208243337,-3363.4097728,0.00011,2]
[333495915,1722208243350,-16749.17539964,0.00011,2]
[333495916,1722208243361,-180204.26649294,0.00011,2]
[333495917,1722208243374,-831.48450349,0.00011,2]
[333495918,1722208243385,-6459.35253181,0.00011,2]
[333495919,1722208243396,-1314.84081101,0.00011,2]
[333495920,1722208243420,-255.92555444,0.00010999,2]
[333495921,1722208243429,-583.17553659,0.00011,2]
[333495922,1722208243470,-715.36994382,0.00011,2]
[333495923,1722208243481,-3593.78666846,0.00011,2]
[333495924,1722208243492,-931.13278959,0.00011,2]
[333495925,1722208243526,-6020.50980002,0.00011,2]
[333495926,1722208243537,-650.36277005,0.00011,2]
[333495927,1722208243578,-3471.36295703,0.00011,2]
[333495928,1722208243630,-1599.08934919,0.00011,2]
[333495929,1722208243641,-873.04153788,0.00011,2]
[333495930,1722208243652,-443.07349567,0.00011,2]
[333495931,1722208243664,-1255.06367634,0.00011,2]
[333495932,1722208243675,-9640.10867753,0.00011,2]
[333495934,1722208243686,-1570.55517767,0.00011,2]
[333495936,1722208243698,-748.63230573,0.00011,2]
[333495938,1722208243709,-5967.57370409,0.00011,2]
[333495965,1722208246366,-236.3,0.00010354,2]
[333495966,1722208246376,-160.45561431,0.000109,2]
[333495967,1722208246385,-1465.37873573,0.00010999,2]
[333495968,1722208246397,-581.670534,0.00010999,2]
[333495969,1722208246408,-364.8922575,0.00010999,2]
[333495970,1722208246419,-2797.20051124,0.00010999,2]
[333495971,1722208246429,-806203.62135387,0.00011,2]
[333495972,1722208246438,-131574.00000002,0.00011,2]
[333495973,1722208246447,-2000.0,0.00011,2]
[333495974,1722208246456,-1237924.09000539,0.00011,2]
[333495975,1722208246468,-458.27649239,0.00011,2]
[333495976,1722208246479,-1295.87497203,0.00011,2]
[333495977,1722208246491,-11753.76194839,0.00011,2]
[333495978,1722208246502,-30861.97877135,0.00011,2]
[333495979,1722208246513,-3885.10398628,0.00011,2]
[333495980,1722208246524,-1766.8052,0.00011,2]
[333495981,1722208246539,-1588.62230272,0.00011,2]
[333495982,1722208246551,-4349.09017876,0.00011,2]
[333495983,1722208246562,-1807.38138046,0.00011,2]
[333495984,1722208246573,-29345.15677151,0.00011,2]
[333495985,1722208246585,-596.79156854,0.00011,2]
[333495986,1722208246597,-473.62789852,0.00011,2]
[333495987,1722208246608,-80972.56639869,0.00011,2]
[333495988,1722208246619,-8388.26784103,0.00011,2]
[333495989,1722208246631,-2353.21410219,0.00011,2]
[333495990,1722208246642,-1000.54103258,0.00011,2]
[333495991,1722208246653,-346.76974357,0.00011,2]
[333495992,1722208246664,-2439.94300744,0.00011,2]
[333495993,1722208246675,-585.79333653,0.00011,2]
[333495994,1722208246687,-1740.74654837,0.00011,2]
[333495995,1722208246698,-506.28464956,0.00011,2]
[333495996,1722208246709,-430.18684934,0.00011,2]
[333495997,1722208246720,-6985.44336142,0.00011,2]
[333495998,1722208246731,-13724.42295106,0.00011,2]
[333495999,1722208246743,-3666.82998998,0.00011,2]
[333496000,1722208246754,-5143.26,0.00011,2]
[333496001,1722208247511,-553.56974129,0.00011,2]
[333496003,1722208247522,-11823.59982305,0.00011,2]
[333496005,1722208247533,-1671.17631581,0.00011,2]
[333496007,1722208247544,-1217.5824999,0.00011,2]
[333496008,1722208247555,-609.53823585,0.00011,2]
[333496010,1722208247566,-3693.93006249,0.00011,2]
[333496012,1722208247578,-4281.62023915,0.00011,2]
[333496013,1722208247588,-700.10587778,0.00011,2]
[333496014,1722208247600,-2563.31968009,0.00011,2]
[333496015,1722209155613,481.21512606,6.94e-05,2]
[333496024,1722209243625,1632.6662692,6.94e-05,2]
[333496041,1722209290068,750.0,6.94e-05,2]
[333496042,1722209291439,883.68962078,6.94e-05,2]
[333496043,1722209306380,883.68962078,6.94e-05,2]
[333496044,1722209320302,750.0,6.94e-05,2]
[333496045,1722209328075,1632.6662692,6.94e-05,2]
[333496051,1722209420082,1632.6662692,6.94e-05,2]
[333496055,1722209432551,-426.7,8.219e-05,2]
[333496056,1722209432561,-750.0,8.412e-05,2]
[333496057,1722209432572,-1823.3,9.216e-05,2]
[333496058,1722209432583,-102.37,9.216e-05,2]
[333496059,1722209432593,-8537.91,9.23e-05,2]
[333496060,1722209432602,-3055.42,9.231e-05,2]
[333496061,1722209432612,-800.0,9.232e-05,2]
[333496062,1722209432621,-200.0,9.277e-05,2]
[333496063,1722209432631,-8196.19,9.296e-05,2]
[333496064,1722209432640,-150.0,9.888e-05,2]
[333496065,1722209432650,-204.18166783,0.0001,2]
[333496066,1722209432660,-1250.0,0.0001,2]
[333496067,1722209432670,-2624.24139058,0.00010025,2]
[333496068,1722209432680,-150.0,0.00010028,2]
[333496069,1722209432689,-2655.27,0.00010029,2]
[333496070,1722209432698,-22503.07,0.00010029,2]
[333496071,1722209432709,-2655.27,0.00010032,2]
[333496072,1722209432719,-2655.27,0.00010035,2]
[333496073,1722209432732,-150.99,0.00010035,2]
[333496074,1722209432750,-2655.27,0.00010037,2]
[333496075,1722209432760,-450.12,0.00010037,2]
[333496076,1722209432770,-2655.27,0.0001004,2]
[333496077,1722209432781,-2655.27,0.00010042,2]
[333496078,1722209432790,-2655.27,0.00010045,2]
[333496079,1722209432800,-2655.27,0.00010048,2]
[333496080,1722209432809,-2655.27,0.0001005,2]
[333496081,1722209432820,-2655.27,0.00010053,2]
[333496082,1722209432829,-2655.27,0.00010056,2]
[333496083,1722209432838,-2655.27,0.00010058,2]
[333496084,1722209432848,-2655.27,0.00010061,2]
[333496085,1722209432858,-2655.27,0.00010064,2]
[333496086,1722209432867,-2655.27,0.00010066,2]
[333496087,1722209432876,-2655.27,0.00010069,2]
[333496088,1722209432885,-2655.27,0.00010071,2]
[333496089,1722209432895,-2655.27,0.00010074,2]
[333496090,1722209432904,-2655.27,0.00010077,2]
[333496091,1722209432914,-2655.27,0.00010079,2]
[333496092,1722209432925,-173.07,0.00010278,2]
[333496093,1722209432935,-800.0,0.00010386,2]
[333496094,1722209432945,-426.7,0.00010435,2]
[333496095,1722209432955,-200.0,0.00010436,2]
[333496096,1722209432965,-2804.45,0.00010449,2]
[333496097,1722209432974,-5000.0,0.000105,2]
[333496098,1722209432984,-924.92,0.00010541,2]
[333496099,1722209432994,-1668.0,0.00010594,2]
[333496100,1722209433003,-327.775,0.00010758,2]
[333496101,1722209433012,-30094.889,0.00010758,2]
[333496103,1722209433021,-3960.5705,0.00010758,2]
[333496105,1722209433030,-23272.2304,0.00010758,2]
[333496107,1722209433040,-1000.0,0.00010758,2]
[333496108,1722209433049,-2500.0,0.00010758,2]
[333496110,1722209433058,-600.0,0.00010797,2]
[333496112,1722209433069,-21210.3587,0.000108,2]
[333496114,1722209433079,-233306.3657,0.00010858,2]
[333496116,1722209433088,-1000.0,0.00010858,2]
[333496118,1722209433098,-15101.25650702,0.0001088,2]
[333496120,1722209433111,-202.3894396,0.00010886,2]
[333496122,1722209433121,-202.3894396,0.0001089,2]
[333496124,1722209433130,-3000.0,0.0001089,2]
[333496126,1722209433139,-202.3894396,0.00010893,2]
[333496128,1722209433149,-202.3894396,0.00010897,2]
[333496130,1722209433159,-181.25355673,0.00010899,2]
[333496132,1722209433168,-181.25355671,0.00010899,2]
[333496134,1722209433177,-181.25355671,0.00010899,2]
[333496136,1722209433187,-181.25355671,0.00010899,2]
[333496138,1722209433196,-181.25355671,0.00010899,2]
[333496145,1722209433450,-181.25355671,0.00010899,2]
[333496146,1722209433460,-181.25355671,0.00010899,2]
[333496147,1722209433470,-181.25355671,0.00010899,2]
[333496148,1722209433480,-181.25355671,0.00010899,2]
[333496149,1722209433489,-670.19673905,0.00010899,2]
[333496150,1722209433499,-670.19673903,0.000109,2]
[333496151,1722209433509,-1139.586,0.000109,2]
[333496152,1722209433519,-169.84462217,0.000109,2]
[333496153,1722209433528,-166.339282,0.000109,2]
[333496154,1722209433538,-181.25355671,0.000109,2]
[333496155,1722209433548,-202.3894396,0.000109,2]
[333496156,1722209433557,-670.19673903,0.000109,2]
[333496157,1722209433570,-150.0,0.00010959,2]
[333496158,1722209433580,-250.0,0.00010959,2]
[333496159,1722209433589,-7014.23,0.00010959,2]
[333496160,1722209433599,-237.95,0.00010959,2]
[333496161,1722209433609,-198.29,0.00010959,2]
[333496162,1722209433618,-165.25,0.00010959,2]
[333496163,1722209433628,-826.25,0.00010959,2]
[333496164,1722209433637,-156266.48387196,0.00010986,2]
[333496165,1722209433650,-5114.51612804,0.00010986,2]
[333496166,1722209433659,-578.0,0.00010986,2]
[333496167,1722209433668,-246.09095234,0.00010986,2]
[333496168,1722209433678,-1102.42200612,0.00010989,2]
[333496169,1722209433689,-7300.0,0.00010989,2]
[333496170,1722209433701,-3537.64514157,0.00010989,2]
[333496171,1722209433712,-298375.89667827,0.00010989,2]
[333496172,1722209433723,-233426.05398603,0.0001099,2]
[333496173,1722209433735,-349.70936002,0.0001099,2]
[333496174,1722209433747,-3546.95296747,0.0001099,2]
[333496175,1722209433758,-295.44814184,0.0001099,2]
[333496176,1722209433771,-1192.8949193,0.0001099,2]
[333496179,1722209439989,-150.0,0.00010594,2]
[333496180,1722209439999,-1514.7,0.00010594,2]
[333496181,1722209440055,-1490.43650887,0.00010594,2]
[333496182,1722209440131,-250.86146615,0.00010594,2]
[333496183,1722209440143,-1864.00202498,0.00010594,2]
[333496184,1722209440153,-199.30824592,0.00010899,2]
[333496185,1722209440163,-14387.123729,0.0001099,2]
[333496186,1722209440204,-4359.03,0.0001099,2]
[333496187,1722209440216,-326.45,0.0001099,2]
[333496188,1722209440227,-300.001004,0.0001099,2]
[333496196,1722209440629,-415.1,0.0001099,2]
[333496197,1722209440641,-2297.4020911,0.0001099,2]
[333496198,1722209440779,-1746.2,0.0001099,2]
[333496202,1722209442890,-1388.82081271,0.0001099,2]
[333496203,1722209442902,-1480.7127925,0.0001099,2]
[333496204,1722209443205,-914.81062157,0.0001099,2]
[333496205,1722209443220,-702.22,0.0001099,2]
[333496214,1722209445516,-863.395,0.00010594,2]
[333496215,1722209445525,-87022.74232596,0.0001099,2]
[333496216,1722209445536,-3036.39675638,0.0001099,2]
[333496217,1722209445798,-727918.95946212,0.0001099,2]
[333496218,1722209445810,-52417.2614487,0.00010995,2]
[333496219,1722209445821,-49367.67908874,0.00010997,2]
[333496220,1722209445830,-500.0,0.00010997,2]
[333496221,1722209445840,-500.0,0.00010997,2]
[333496222,1722209445849,-613.35106498,0.00010997,2]
[333496223,1722209445858,-500.0,0.00010997,2]
[333496224,1722209445868,-500.0,0.00010997,2]
[333496225,1722209445877,-500.0,0.00010997,2]
[333496226,1722209445886,-500.0,0.00010997,2]
[333496227,1722209445896,-500.0,0.00010997,2]
[333496228,1722209445905,-500.0,0.00010997,2]
[333496229,1722209445914,-500.0,0.00010997,2]
[333496230,1722209445923,-500.0,0.00010997,2]
[333496231,1722209445933,-500.0,0.00010997,2]
[333496232,1722209445942,-500.0,0.00010997,2]
[333496233,1722209445951,-500.0,0.00010997,2]
[333496234,1722209445960,-500.0,0.00010997,2]
[333496235,1722209445969,-500.0,0.00010997,2]
[333496236,1722209445978,-560.03676184,0.00010997,2]
[333496237,1722209445987,-500.0,0.00010997,2]
[333496238,1722209445996,-500.0,0.00010997,2]
[333496239,1722209446005,-500.0,0.00010997,2]
[333496240,1722209446015,-500.0,0.00010997,2]
[333496241,1722209446024,-500.0,0.00010997,2]
[333496242,1722209446033,-500.0,0.00010997,2]
[333496243,1722209446042,-500.0,0.00010997,2]
[333496244,1722209446052,-500.0,0.00010997,2]
[333496245,1722209446060,-500.0,0.00010997,2]
[333496246,1722209446070,-500.0,0.00010997,2]
[333496247,1722209446079,-500.0,0.00010997,2]
[333496248,1722209446089,-500.0,0.00010997,2]
[333496249,1722209446098,-500.0,0.00010997,2]
[333496250,1722209446107,-500.0,0.00010997,2]
[333496251,1722209446117,-500.0,0.00010997,2]
[333496253,1722209446126,-500.0,0.00010997,2]
[333496255,1722209446135,-500.0,0.00010997,2]
[333496257,1722209446144,-500.0,0.00010997,2]
[333496259,1722209446153,-500.0,0.00010997,2]
[333496260,1722209446162,-500.0,0.00010997,2]
[333496261,1722209446171,-500.0,0.00010997,2]
[333496262,1722209446181,-500.0,0.00010997,2]
[333496263,1722209446189,-500.0,0.00010997,2]
[333496264,1722209446198,-500.0,0.00010997,2]
[333496265,1722209446207,-500.0,0.00010997,2]
[333496266,1722209446218,-500.0,0.00010997,2]
[333496267,1722209446228,-500.0,0.00010997,2]
[333496268,1722209446237,-500.0,0.00010997,2]
[333496269,1722209446247,-500.0,0.00010997,2]
[333496270,1722209446257,-500.0,0.00010997,2]
[333496271,1722209446266,-500.0,0.00010997,2]
[333496272,1722209446275,-500.0,0.00010997,2]
[333496273,1722209446286,-500.0,0.00010997,2]
[333496274,1722209446296,-500.0,0.00010997,2]
[333496275,1722209446305,-500.0,0.00010997,2]
[333496276,1722209446317,-554.68,0.00010997,2]
[333496277,1722209446326,-500.0,0.00010997,2]
[333496278,1722209446336,-500.0,0.00010997,2]
[333496279,1722209446345,-500.0,0.00010997,2]
[333496280,1722209446355,-512.36,0.00010997,2]
[333496281,1722209446365,-506.48578621,0.00010997,2]
[333496282,1722209446374,-500.0,0.00010997,2]
[333496283,1722209446384,-500.0,0.00010997,2]
[333496284,1722209446393,-500.0,0.00010997,2]
[333496285,1722209446403,-500.0,0.00010997,2]
[333496286,1722209446412,-500.0,0.00010997,2]
[333496287,1722209446422,-500.0,0.00010997,2]
[333496288,1722209446433,-500.0,0.00010997,2]
[333496289,1722209446442,-500.0,0.00010997,2]
[333496290,1722209446453,-500.0,0.00010997,2]
[333496291,1722209446462,-500.0,0.00010997,2]
[333496292,1722209446472,-500.0,0.00010997,2]
[333496293,1722209446482,-500.0,0.00010997,2]
[333496294,1722209446493,-500.0,0.00010997,2]
[333496295,1722209446502,-500.0,0.00010997,2]
[333496296,1722209446511,-500.0,0.00010997,2]
[333496297,1722209446521,-500.0,0.00010997,2]
[333496298,1722209446531,-500.0,0.00010997,2]
[333496299,1722209446540,-500.0,0.00010997,2]
[333496300,1722209446549,-500.0,0.00010997,2]
[333496301,1722209446559,-500.0,0.00010997,2]
[333496302,1722209446570,-500.0,0.00010997,2]
[333496303,1722209446580,-500.0,0.00010997,2]
[333496304,1722209446589,-500.0,0.00010997,2]
[333496305,1722209446598,-500.0,0.00010997,2]
[333496306,1722209446607,-500.0,0.00010997,2]
[333496307,1722209446616,-500.0,0.00010997,2]
[333496308,1722209446625,-500.0,0.00010997,2]
[333496309,1722209446635,-500.0,0.00010997,2]
[333496310,1722209446644,-611.42,0.00010997,2]
[333496311,1722209446654,-431.35170557,0.00010997,2]
[333496312,1722209446663,-500.0,0.00010997,2]
[333496313,1722209446673,-512.0378227,0.00010997,2]
[333496314,1722209446682,-500.0,0.00010997,2]
[333496315,1722209446691,-500.0,0.00010997,2]
[333496316,1722209446701,-500.0,0.00010997,2]
[333496317,1722209446710,-500.0,0.00010997,2]
[333496318,1722209446720,-283.66,0.00010997,2]
[333496319,1722209446732,-500.0,0.00010997,2]
[333496320,1722209446743,-500.0,0.00010997,2]
[333496321,1722209446752,-500.0,0.00010997,2]
[333496322,1722209446762,-500.0,0.00010997,2]
[333496323,1722209446771,-500.0,0.00010997,2]
[333496324,1722209446782,-500.0,0.00010997,2]
[333496325,1722209446792,-500.0,0.00010997,2]
[333496326,1722209446802,-500.0,0.00010997,2]
[333496327,1722209446812,-500.0,0.00010997,2]
[333496328,1722209446821,-500.0,0.00010997,2]
[333496329,1722209446831,-500.0,0.00010997,2]
[333496330,1722209446840,-500.0,0.00010997,2]
[333496331,1722209446849,-500.0,0.00010997,2]
[333496332,1722209446858,-500.0,0.00010997,2]
[333496333,1722209446868,-500.0,0.00010997,2]
[333496334,1722209446878,-500.0,0.00010997,2]
[333496335,1722209446888,-500.0,0.00010997,2]
[333496336,1722209446898,-500.0,0.00010997,2]
[333496337,1722209446908,-500.0,0.00010997,2]
[333496338,1722209446918,-500.0,0.00010997,2]
[333496339,1722209446927,-500.0,0.00010997,2]
[333496340,1722209446937,-500.0,0.00010997,2]
[333496341,1722209446946,-500.0,0.00010997,2]
[333496342,1722209446956,-500.0,0.00010997,2]
[333496343,1722209446966,-500.0,0.00010997,2]
[333496344,1722209446975,-500.0,0.00010997,2]
[333496345,1722209446984,-500.0,0.00010997,2]
[333496346,1722209446994,-500.0,0.00010997,2]
[333496347,1722209447003,-500.0,0.00010997,2]
[333496348,1722209447013,-500.0,0.00010997,2]
[333496349,1722209447023,-500.0,0.00010997,2]
[333496350,1722209447033,-500.0,0.00010997,2]
[333496351,1722209447043,-500.0,0.00010997,2]
[333496352,1722209447052,-500.0,0.00010997,2]
[333496353,1722209447062,-500.0,0.00010997,2]
[333496354,1722209447279,-500.0,0.00010997,2]
[333496355,1722209447290,-500.0,0.00010997,2]
[333496356,1722209447300,-500.0,0.00010997,2]
[333496357,1722209447309,-500.0,0.00010997,2]
[333496358,1722209447319,-500.0,0.00010997,2]
[333496359,1722209447330,-339.68973934,0.00010997,2]
[333496360,1722209447340,-500.0,0.00010997,2]
[333496361,1722209447349,-500.0,0.00010997,2]
[333496362,1722209447359,-500.0,0.00010997,2]
[333496363,1722209447369,-500.0,0.00010997,2]
[333496364,1722209447378,-500.0,0.00010997,2]
[333496365,1722209447388,-500.0,0.00010997,2]
[333496366,1722209447397,-311.65292893,0.00010997,2]
[333496367,1722209447407,-500.0,0.00010997,2]
[333496368,1722209447417,-500.0,0.00010997,2]
[333496369,1722209447427,-500.0,0.00010997,2]
[333496370,1722209447437,-500.0,0.00010997,2]
[333496371,1722209447446,-504.64797785,0.00010997,2]
[333496372,1722209447455,-500.0,0.00010997,2]
[333496373,1722209447465,-500.0,0.00010997,2]
[333496374,1722209447474,-500.0,0.00010997,2]
[333496375,1722209447484,-500.0,0.00010997,2]
[333496376,1722209447494,-500.0,0.00010997,2]
[333496377,1722209447504,-500.0,0.00010997,2]
[333496378,1722209447514,-500.0,0.00010997,2]
[333496379,1722209447524,-510.96935114,0.00010997,2]
[333496380,1722209447534,-341.09421481,0.00010997,2]
[333496381,1722209447544,-510.00862253,0.00010997,2]
[333496382,1722209447553,-500.0,0.00010997,2]
[333496383,1722209447564,-500.0,0.00010997,2]
[333496384,1722209447574,-500.0,0.00010997,2]
[333496385,1722209447584,-500.0,0.00010997,2]
[333496386,1722209447593,-508.60722251,0.00010997,2]
[333496387,1722209447603,-500.0,0.00010997,2]
[333496388,1722209447612,-506.72368767,0.00010997,2]
[333496389,1722209447621,-500.0,0.00010997,2]
[333496390,1722209447632,-500.0,0.00010997,2]
[333496391,1722209447641,-502.90961791,0.00010997,2]
[333496392,1722209447651,-500.0,0.00010997,2]
[333496393,1722209447660,-500.0,0.00010997,2]
[333496394,1722209447670,-500.0,0.00010997,2]
[333496395,1722209447679,-500.0,0.00010997,2]
[333496396,1722209447689,-500.0,0.00010997,2]
[333496397,1722209447699,-500.0,0.00010997,2]